{"text_format":"2","workbook":"xlsx","n_sheets":1,"sheets":["Munka1"],"not_rendered":{"charts":0,"images":0,"macros":0,"external_links":0,"defined_names":0,"comments":0,"pivot_tables":0},"unopened":[],"bounds":{"document_bytes":16777216,"sheet_cells":100000,"run_cost":"one","rows_first":2000,"rows_last":500,"rows_between":2000,"halvings":0,"cell_chars":16384,"cell_head_chars":4096},"cells_cut":0,"cells_raw":0,"read":"whole","date_system":"1900"}

{"sheet":"Munka1","index":0,"n_rows":26,"n_cols":7,"rows_kept":26,"cut":false,"hidden":false,"merged":[[25,4,25,5],[24,4,24,5]]}
["Tárgy: SZTE Móra Ferenc Szakkollégium udvarán kerékpártároló bővítése szerszámtárolóval"]
[]
["Kitöltötte:"]
[]
[]
["Termék","Mennyiség","Egység","Egység ár","Egység munkadíj","Össz ár","Össz munkadíj"]
["Aszfalt és betonaljzat felvésése körbevágással",2,"m2",0,0,{"$f":"D7*B7","v":0},{"$f":"E7*B7","v":0}]
["Hulladékelszállítás",0.4,"m3",0,0,{"$f":"D8*B8","v":0},{"$f":"E8*B8","v":0}]
["Geotextília",2,"m2",0,0,0,0]
["Zúzott kő felület készítés",0.4,"m3",0,0,0,0]
["40x40x3 zártszelvény váz építése",55,"m",0,0,{"$f":"D11*B11","v":0},{"$f":"E11*B11","v":0}]
["Alapozó festék",220,"m",0,0,{"$f":"D12*B12","v":0},{"$f":"E12*B12","v":0}]
["Magasfényű zománcfesték",220,"m",0,0,0,0]
["Trapézlemez fedés",14,"m2",0,0,0,0]
["Szerszám tartó készítése",1,"szett",0,0,0,0]
["Átadási dokumentácó készítése",1,"db",0,0,0,0]
["Összesen nettó",{"$nulls":4},{"$f":"SUM(F7:F16)","v":0},{"$f":"SUM(G7:G16)","v":0}]
["Összesen bruttó",{"$nulls":4},{"$f":"F17*1.27","v":0},{"$f":"G17*1.27","v":0}]
["A munka ára",{"$nulls":5},{"$f":"F18+G18","v":0}]
[]
[]
["Dátum: 2024…………………."]
[]
[]
[]
[{"$nulls":4},"cégszerű aláírás"]